[Event "*** Titled Tuesday 3|2 Blitz"]
[Site "Chess.com"]
[Date "2016.01.05"]
[Round "2"]
[White "cheese111"]
[Black "spirals5"]
[Result "1-0"]
[WhiteElo "2263"]
[BlackElo "2204"]
[TimeControl "180+2"]
[EndTime "17:27:49 PST"]
[Termination "cheese111 won by resignation"]

1. e4 {[%clk 0:03:01.9]} 1... c5 {[%clk 0:03:00.4]} 2. Nf3 {[%clk 0:03:02.3]}
2... d6 {[%clk 0:03:01]} 3. d4 {[%clk 0:03:03]} 3... cxd4 {[%clk 0:03:01.8]} 4.
Qxd4 {[%clk 0:03:04.9]} 4... Nc6 {[%clk 0:03:01.8]} 5. Bb5 {[%clk 0:03:05.7]}
5... Bd7 {[%clk 0:03:02.9]} 6. Bxc6 {[%clk 0:03:06.7]} 6... Bxc6 {[%clk
0:03:04.1]} 7. Nc3 {[%clk 0:03:07.7]} 7... Nf6 {[%clk 0:03:04.6]} 8. Bg5 {[%clk
0:03:08.6]} 8... e6 {[%clk 0:03:04.4]} 9. O-O-O {[%clk 0:03:09.1]} 9... Be7
{[%clk 0:03:05.4]} 10. Qd3 {[%clk 0:03:10]} 10... a6 {[%clk 0:03:03.5]} 11. Nd4
{[%clk 0:03:10.7]} 11... Qc7 {[%clk 0:02:59.6]} 12. f4 {[%clk 0:03:05.1]} 12...
Rd8 {[%clk 0:02:58.8]} 13. f5 {[%clk 0:02:43.2]} 13... e5 {[%clk 0:02:58.4]} 14.
Bxf6 {[%clk 0:02:42]} 14... Bxf6 {[%clk 0:02:57.8]} 15. Nf3 {[%clk 0:02:42.7]}
15... b5 {[%clk 0:02:49.5]} 16. Nd5 {[%clk 0:02:40.8]} 16... Bxd5 {[%clk
0:02:50]} 17. Qxd5 {[%clk 0:02:42.7]} 17... O-O {[%clk 0:02:50.6]} 18. Kb1
{[%clk 0:02:33.5]} 18... Rc8 {[%clk 0:02:49.4]} 19. Rd2 {[%clk 0:02:30.2]} 19...
Rfd8 {[%clk 0:02:49.7]} 20. g4 {[%clk 0:02:30.3]} 20... Be7 {[%clk 0:02:45.7]}
21. Qd3 {[%clk 0:01:48.3]} 21... Qc4 {[%clk 0:02:40.3]} 22. Qxc4 {[%clk
0:01:41.3]} 22... Rxc4 {[%clk 0:02:40.2]} 23. Re2 {[%clk 0:01:35.1]} 23... f6
{[%clk 0:02:35.1]} 24. Nd2 {[%clk 0:01:00.9]} 24... Rc7 {[%clk 0:02:33.5]} 25.
Nb3 {[%clk 0:00:32]} 25... d5 {[%clk 0:02:34.2]} 26. Rd1 {[%clk 0:00:32.6]}
26... dxe4 {[%clk 0:02:25.7]} 27. Rxd8+ {[%clk 0:00:34.5]} 27... Bxd8 {[%clk
0:02:26.2]} 28. Rxe4 {[%clk 0:00:36.4]} 28... Be7 {[%clk 0:02:23.1]} 29. c3
{[%clk 0:00:37]} 29... Kf7 {[%clk 0:02:20.7]} 30. Kc2 {[%clk 0:00:37.8]} 30...
Ke8 {[%clk 0:02:03.1]} 31. Nd2 {[%clk 0:00:37.8]} 31... Kd7 {[%clk 0:02:01.9]}
32. a4 {[%clk 0:00:37.7]} 32... Kc6 {[%clk 0:01:57.6]} 33. h3 {[%clk 0:00:21]}
33... Kb6 {[%clk 0:01:55.3]} 34. axb5 {[%clk 0:00:17.2]} 34... axb5 {[%clk
0:01:55.9]} 35. Re1 {[%clk 0:00:17]} 35... Ra7 {[%clk 0:01:41]} 36. Ne4 {[%clk
0:00:16.9]} 36... Ra4 {[%clk 0:01:36.6]} 37. Kb3 {[%clk 0:00:17.2]} 37... h6
{[%clk 0:01:33.6]} 38. Ng3 {[%clk 0:00:17.3]} 38... Bc5 {[%clk 0:01:21.8]} 39.
Rd1 {[%clk 0:00:16.4]} 39... Ra7 {[%clk 0:01:21.5]} 40. Ne4 {[%clk 0:00:15.3]}
40... Be7 {[%clk 0:01:20.9]} 41. Rd5 {[%clk 0:00:13.6]} 41... Kc6 {[%clk
0:01:20]} 42. Rd3 {[%clk 0:00:13.8]} 42... Ra1 {[%clk 0:01:14.6]} 43. Ng3 {[%clk
0:00:11.9]} 43... Ra7 {[%clk 0:01:04.2]} 44. Nh5 {[%clk 0:00:12.5]} 44... Bc5
{[%clk 0:00:59.3]} 45. Rd8 {[%clk 0:00:11.7]} 45... e4 {[%clk 0:00:58.3]} 46.
Re8 {[%clk 0:00:10.7]} 46... e3 {[%clk 0:00:57.4]} 47. Nf4 {[%clk 0:00:07.4]}
47... Re7 {[%clk 0:00:54]} 48. Rxe7 {[%clk 0:00:07.9]} 48... Bxe7 {[%clk
0:00:54.3]} 49. Kc2 {[%clk 0:00:09.8]} 49... b4 {[%clk 0:00:40]} 50. Kd3 {[%clk
0:00:09.2]} 50... bxc3 {[%clk 0:00:40.9]} 51. bxc3 {[%clk 0:00:09.9]} 51... Bc5
{[%clk 0:00:42.1]} 52. Ng2 {[%clk 0:00:10.1]} 52... Kd5 {[%clk 0:00:39.8]} 53.
Nxe3+ {[%clk 0:00:11.1]} 53... Ke5 {[%clk 0:00:40.6]} 54. Ng2 {[%clk 0:00:11.7]}
54... Ba7 {[%clk 0:00:36.7]} 55. Ke2 {[%clk 0:00:08.9]} 55... Ke4 {[%clk
0:00:37.1]} 56. c4 {[%clk 0:00:08.8]} 56... Bc5 {[%clk 0:00:33.3]} 57. Ne1
{[%clk 0:00:07.4]} 57... Kd4 {[%clk 0:00:33.3]} 58. Kf3 {[%clk 0:00:05.2]} 58...
Kxc4 {[%clk 0:00:34.1]} 59. Ke4 {[%clk 0:00:06.3]} 59... Bb6 {[%clk 0:00:31.2]}
60. Nd3 {[%clk 0:00:07.1]} 60... Bc7 {[%clk 0:00:31.8]} 61. Nf2 {[%clk
0:00:06.7]} 61... Bb6 {[%clk 0:00:31.3]} 62. Nd3 {[%clk 0:00:07.3]} 62... Bc7
{[%clk 0:00:32.4]} 63. Nc1 {[%clk 0:00:08.1]} 63... Bb6 {[%clk 0:00:29.1]} 64.
Ne2 {[%clk 0:00:08.3]} 64... Bc7 {[%clk 0:00:27]} 65. Nd4 {[%clk 0:00:07.6]}
65... Be5 {[%clk 0:00:17.7]} 66. Ne6 {[%clk 0:00:08.3]} 66... Kc3 {[%clk
0:00:18.4]} 67. Nxg7 {[%clk 0:00:08.8]} 67... Kd2 {[%clk 0:00:19.5]} 68. Kf3
{[%clk 0:00:09.1]} 68... Kd3 {[%clk 0:00:20.2]} 69. Nh5 {[%clk 0:00:08.7]} 69...
Kd4 {[%clk 0:00:20.2]} 70. Nf4 {[%clk 0:00:09.2]} 70... Bd6 {[%clk 0:00:17.5]}
71. Ne6+ {[%clk 0:00:09]} 71... Ke5 {[%clk 0:00:18.3]} 72. Nf4 {[%clk
0:00:09.2]} 72... Ba3 {[%clk 0:00:17.6]} 73. Ne2 {[%clk 0:00:09.8]} 73... Bb2
{[%clk 0:00:18]} 74. Ng3 {[%clk 0:00:10.5]} 74... Bc1 {[%clk 0:00:14.4]} 75. Ne4
{[%clk 0:00:10.7]} 75... Ba3 {[%clk 0:00:13]} 76. Nc3 {[%clk 0:00:10.6]} 76...
Bc5 {[%clk 0:00:12.7]} 77. Ne2 {[%clk 0:00:10.5]} 77... Bb6 {[%clk 0:00:12.2]}
78. Nf4 {[%clk 0:00:11.3]} 78... Kd6 {[%clk 0:00:10.5]} 79. Ke4 {[%clk
0:00:10.8]} 79... Bd8 {[%clk 0:00:09.9]} 80. Ne6 {[%clk 0:00:11.4]} 80... Bb6
{[%clk 0:00:10]} 81. Ng7 {[%clk 0:00:11.4]} 81... Ke7 {[%clk 0:00:10.4]} 82. Kd5
{[%clk 0:00:11.6]} 82... Be3 {[%clk 0:00:10.5]} 83. Ne6 {[%clk 0:00:12.3]} 83...
Bd2 {[%clk 0:00:10.3]} 84. Nc5 {[%clk 0:00:12.4]} 84... Be3 {[%clk 0:00:09.1]}
85. Kc6 {[%clk 0:00:13.3]} 85... Bd2 {[%clk 0:00:06.6]} 86. Ne4 {[%clk
0:00:13.6]} 86... Bf4 {[%clk 0:00:06.6]} 87. Nc3 {[%clk 0:00:14.3]} 87... Be5
{[%clk 0:00:06.9]} 88. Nd5+ {[%clk 0:00:15.1]} 88... Kf7 {[%clk 0:00:08.1]} 89.
Kd7 {[%clk 0:00:15.9]} 89... Bf4 {[%clk 0:00:05.5]} 90. Nxf4 {[%clk 0:00:16.3]}
1-0

[Event "*** Titled Tuesday 3|2 Blitz"]
[Site "Chess.com"]
[Date "2016.01.05"]
[Round "2"]
[White "Smirnov_Pavel"]
[Black "StellarChessPro"]
[Result "1-0"]
[WhiteElo "2230"]
[BlackElo "2224"]
[TimeControl "180+2"]
[EndTime "17:28:23 PST"]
[Termination "Smirnov_Pavel won by resignation"]

1. d4 {[%clk 0:03:01.9]} 1... d5 {[%clk 0:03:00.8]} 2. c4 {[%clk 0:03:02.6]}
2... c6 {[%clk 0:03:02.1]} 3. Nf3 {[%clk 0:03:03.6]} 3... Nf6 {[%clk 0:03:03.2]}
4. Nc3 {[%clk 0:03:04.8]} 4... e6 {[%clk 0:03:04.6]} 5. Bg5 {[%clk 0:03:05.6]}
5... dxc4 {[%clk 0:03:05.8]} 6. e4 {[%clk 0:03:06.4]} 6... b5 {[%clk 0:03:06.6]}
7. e5 {[%clk 0:03:07.7]} 7... h6 {[%clk 0:03:08]} 8. Bh4 {[%clk 0:03:09]} 8...
g5 {[%clk 0:03:09.6]} 9. Nxg5 {[%clk 0:03:10.2]} 9... hxg5 {[%clk 0:03:10.8]}
10. Bxg5 {[%clk 0:03:11.4]} 10... Nbd7 {[%clk 0:03:12.7]} 11. exf6 {[%clk
0:03:11]} 11... Bb7 {[%clk 0:03:13.5]} 12. g3 {[%clk 0:03:12.2]} 12... Qb6
{[%clk 0:03:14.2]} 13. Bg2 {[%clk 0:03:12.8]} 13... c5 {[%clk 0:03:15.3]} 14. d5
{[%clk 0:03:13.9]} 14... O-O-O {[%clk 0:03:16.5]} 15. O-O {[%clk 0:03:15]} 15...
b4 {[%clk 0:03:17.7]} 16. Na4 {[%clk 0:03:15.9]} 16... Qb5 {[%clk 0:03:18.8]}
17. a3 {[%clk 0:03:16.6]} 17... exd5 {[%clk 0:03:20]} 18. axb4 {[%clk
0:03:16.7]} 18... d4 {[%clk 0:03:21.2]} 19. Nxc5 {[%clk 0:03:01.7]} 19... Nxc5
{[%clk 0:03:17.1]} 20. bxc5 {[%clk 0:03:01.7]} 20... Bxg2 {[%clk 0:03:17.6]} 21.
Kxg2 {[%clk 0:03:02.7]} 21... Qc6+ {[%clk 0:03:18.7]} 22. Kg1 {[%clk 0:03:02.6]}
22... Bxc5 {[%clk 0:03:16.6]} 23. Rc1 {[%clk 0:02:33.6]} 23... d3 {[%clk
0:02:20.8]} 24. Qg4+ {[%clk 0:02:31.4]} 24... Kb7 {[%clk 0:02:11]} 25. Qxc4
{[%clk 0:02:31.8]} 25... Rd5 {[%clk 0:02:11.8]} 26. Qb3+ {[%clk 0:01:45.4]}
26... Ka8 {[%clk 0:02:09.8]} 27. Bh4 {[%clk 0:01:14]} 27... Rd4 {[%clk
0:01:23.8]} 28. Qxf7 {[%clk 0:00:41]} 28... d2 {[%clk 0:00:54.2]} 29. Qg7 {[%clk
0:00:41.7]} 29... Rc8 {[%clk 0:00:22]} 30. Rcd1 {[%clk 0:00:27.3]} 30... Qd5
{[%clk 0:00:21.8]} 31. Qh6 {[%clk 0:00:21.8]} 31... Rg8 {[%clk 0:00:16.3]} 32.
Qh7 {[%clk 0:00:20]} 32... Rf8 {[%clk 0:00:15.5]} 33. b4 {[%clk 0:00:15.9]}
33... Bxb4 {[%clk 0:00:16.3]} 34. h3 {[%clk 0:00:17]} 34... Bd6 {[%clk
0:00:17.3]} 35. Qh6 {[%clk 0:00:14.1]} 35... Rd3 {[%clk 0:00:16]} 36. Kh2 {[%clk
0:00:12.8]} 36... Rf7 {[%clk 0:00:16]} 37. Qg6 {[%clk 0:00:12.1]} 37... Rd4
{[%clk 0:00:17]} 38. Bg5 {[%clk 0:00:12.9]} 38... Kb7 {[%clk 0:00:17.1]} 39. Be3
{[%clk 0:00:13.9]} 39... Rd3 {[%clk 0:00:17.9]} 40. h4 {[%clk 0:00:13.2]} 40...
a5 {[%clk 0:00:18.7]} 41. Rb1+ {[%clk 0:00:13.4]} 41... Bb4 {[%clk 0:00:19.6]}
42. Rfd1 {[%clk 0:00:13.8]} 42... Rd7 {[%clk 0:00:19.9]} 43. h5 {[%clk
0:00:13.8]} 43... Qf3 {[%clk 0:00:20.9]} 44. Kg1 {[%clk 0:00:05.9]} 44... R7d5
{[%clk 0:00:21.2]} 45. Qg7+ {[%clk 0:00:05]} 45... Ka6 {[%clk 0:00:21.6]} 46. g4
{[%clk 0:00:05.8]} 46... Rxe3 {[%clk 0:00:21.6]} 47. fxe3 {[%clk 0:00:06.8]}
47... Qxe3+ {[%clk 0:00:22.7]} 48. Kg2 {[%clk 0:00:08.1]} 48... Qe2+ {[%clk
0:00:23.2]} 49. Kh1 {[%clk 0:00:08]} 49... Qf3+ {[%clk 0:00:23.2]} 50. Kh2
{[%clk 0:00:09.3]} 50... Bd6+ {[%clk 0:00:21.9]} 51. Kg1 {[%clk 0:00:10.4]}
51... Qg3+ {[%clk 0:00:21.8]} 52. Kf1 {[%clk 0:00:11.1]} 52... Qf3+ {[%clk
0:00:20]} 53. Kg1 {[%clk 0:00:12.1]} 53... Bc5+ {[%clk 0:00:19.3]} 54. Kh2
{[%clk 0:00:13]} 54... Qf2+ {[%clk 0:00:19.4]} 55. Kh1 {[%clk 0:00:14.2]} 55...
Qf3+ {[%clk 0:00:17.2]} 56. Kh2 {[%clk 0:00:15.4]} 56... Rd3 {[%clk 0:00:13.2]}
57. Qb7+ {[%clk 0:00:13.8]} 57... Qxb7 {[%clk 0:00:13.8]} 58. Rxb7 {[%clk
0:00:14.8]} 58... Kxb7 {[%clk 0:00:14.9]} 59. g5 {[%clk 0:00:14.7]} 59... Rd5
{[%clk 0:00:15.2]} 60. Kh3 {[%clk 0:00:12.9]} 60... Rxg5 {[%clk 0:00:15.9]} 61.
Rxd2 {[%clk 0:00:14.2]} 61... Rxh5+ {[%clk 0:00:17.1]} 62. Kg4 {[%clk
0:00:15.5]} 62... Rh8 {[%clk 0:00:18]} 63. Kf5 {[%clk 0:00:16.6]} 63... Kc6
{[%clk 0:00:18.3]} 64. f7 {[%clk 0:00:17.6]} 64... a4 {[%clk 0:00:19]} 65. Kg6
{[%clk 0:00:18.9]} 65... Ra8 {[%clk 0:00:18.6]} 66. Re2 {[%clk 0:00:19.8]} 66...
Kd5 {[%clk 0:00:18.3]} 67. Re8 {[%clk 0:00:20.2]} 67... Ra6+ {[%clk 0:00:19.2]}
68. Kf5 {[%clk 0:00:21.2]} 68... Ra7 {[%clk 0:00:18.7]} 69. Rd8+ {[%clk
0:00:19.1]} 69... Kc4 {[%clk 0:00:18.8]} 70. Kg6 {[%clk 0:00:19.9]} 70... a3
{[%clk 0:00:19.1]} 71. Rc8 {[%clk 0:00:21]} 71... Ra6+ {[%clk 0:00:19.1]} 72.
Kf5 {[%clk 0:00:19.1]} 72... a2 {[%clk 0:00:15]} 73. f8=Q {[%clk 0:00:15.9]}
73... Ra5 {[%clk 0:00:11.4]} 74. Qg8+ {[%clk 0:00:10.3]} 74... Kb4 {[%clk
0:00:09.5]} 75. Rb8+ {[%clk 0:00:10.8]} 75... Bb6+ {[%clk 0:00:09.3]} 76. Ke4
{[%clk 0:00:06.7]} 76... a1=Q {[%clk 0:00:08.9]} 77. Qf8+ {[%clk 0:00:04.3]}
77... Ka4 {[%clk 0:00:05.8]} 78. Qe8+ {[%clk 0:00:05]} 78... Rb5 {[%clk
0:00:05.7]} 79. Ra8+ {[%clk 0:00:05.9]} 79... Ba5 {[%clk 0:00:05.3]} 80. Rxa5+
{[%clk 0:00:06.8]} 80... Kxa5 {[%clk 0:00:05.7]} 81. Qa8+ {[%clk 0:00:07.7]}
81... Kb4 {[%clk 0:00:07.6]} 82. Qxa1 {[%clk 0:00:08.5]} 82... Rb6 {[%clk
0:00:09.1]} 83. Qb2+ {[%clk 0:00:09.1]} 83... Kc5 {[%clk 0:00:10.3]} 84. Qc3+
{[%clk 0:00:10.3]} 84... Kb5 {[%clk 0:00:11.7]} 85. Kd5 {[%clk 0:00:11.6]} 85...
Rh6 {[%clk 0:00:09.7]} 86. Qb2+ {[%clk 0:00:12]} 86... Ka6 {[%clk 0:00:10.5]}
87. Qa2+ {[%clk 0:00:12.7]} 87... Kb7 {[%clk 0:00:11.3]} 88. Qb2+ {[%clk
0:00:13.8]} 88... Rb6 {[%clk 0:00:12.4]} 89. Qg7+ {[%clk 0:00:13.8]} 89... Ka6
{[%clk 0:00:13.6]} 90. Kc5 {[%clk 0:00:13.7]} 90... Rb5+ {[%clk 0:00:14.9]} 91.
Kc4 {[%clk 0:00:14.9]} 91... Rb6 {[%clk 0:00:16.1]} 92. Qd7 {[%clk 0:00:16]}
92... Rb4+ {[%clk 0:00:14.3]} 93. Kxb4 {[%clk 0:00:16.5]} 1-0

[Event "*** Titled Tuesday 3|2 Blitz"]
[Site "Chess.com"]
[Date "2016.01.05"]
[Round "3"]
[White "Alliswell998"]
[Black "eltenedor"]
[Result "1-0"]
[WhiteElo "2060"]
[BlackElo "1992"]
[TimeControl "180+2"]
[EndTime "17:31:14 PST"]
[Termination "Alliswell998 won by resignation"]

1. e4 {[%clk 0:03:01.9]} 1... d5 {[%clk 0:02:59.1]} 2. exd5 {[%clk 0:03:02.2]}
2... Nf6 {[%clk 0:02:59.1]} 3. d4 {[%clk 0:03:03]} 3... Nxd5 {[%clk 0:02:59.1]}
4. c4 {[%clk 0:03:04.3]} 4... Nb6 {[%clk 0:02:59.5]} 5. Nc3 {[%clk 0:03:05.9]}
5... g6 {[%clk 0:03:00.2]} 6. h3 {[%clk 0:03:06.1]} 6... Bg7 {[%clk 0:03:00.9]}
7. Nf3 {[%clk 0:03:07.5]} 7... O-O {[%clk 0:03:00.7]} 8. Be2 {[%clk 0:03:09]}
8... Nc6 {[%clk 0:02:49.3]} 9. Be3 {[%clk 0:03:09]} 9... e5 {[%clk 0:02:30.3]}
10. d5 {[%clk 0:03:06.2]} 10... Na5 {[%clk 0:02:21.4]} 11. c5 {[%clk 0:02:56.2]}
11... Nbc4 {[%clk 0:02:20.5]} 12. Bc1 {[%clk 0:02:53.4]} 12... e4 {[%clk
0:01:52.2]} 13. Nd4 {[%clk 0:02:48]} 1-0

[Event "*** Titled Tuesday 3|2 Blitz"]
[Site "Chess.com"]
[Date "2016.01.05"]
[Round "3"]
[White "Colombiano07"]
[Black "UltimateCrusher2"]
[Result "0-1"]
[WhiteElo "2176"]
[BlackElo "2050"]
[TimeControl "180+2"]
[EndTime "17:34:52 PST"]
[Termination "UltimateCrusher2 won by resignation"]

1. d4 {[%clk 0:03:01.9]} 1... b6 {[%clk 0:02:55.8]} 2. e4 {[%clk 0:03:01.4]}
2... Bb7 {[%clk 0:02:54.1]} 3. Bd3 {[%clk 0:03:02.9]} 3... e6 {[%clk 0:02:53.1]}
4. Nf3 {[%clk 0:03:02.8]} 4... c5 {[%clk 0:02:53.6]} 5. Qe2 {[%clk 0:03:01.4]}
5... cxd4 {[%clk 0:02:52.7]} 6. Nxd4 {[%clk 0:03:01.7]} 6... g6 {[%clk
0:02:51.8]} 7. Bd2 {[%clk 0:02:57.9]} 7... a6 {[%clk 0:02:48.4]} 8. Bc3 {[%clk
0:02:58.8]} 8... Bg7 {[%clk 0:02:49.7]} 9. Nxe6 {[%clk 0:02:35.9]} 9... Bxc3+
{[%clk 0:02:48.3]} 10. Nxc3 {[%clk 0:02:34.1]} 10... dxe6 {[%clk 0:02:46.8]} 11.
O-O-O {[%clk 0:02:34.1]} 11... Qc7 {[%clk 0:02:47]} 12. h4 {[%clk 0:02:33]}
12... Ne7 {[%clk 0:02:40.8]} 13. h5 {[%clk 0:02:34.1]} 13... Nbc6 {[%clk
0:02:41.7]} 14. hxg6 {[%clk 0:02:34.5]} 14... Nxg6 {[%clk 0:02:43.6]} 15. Nd5
{[%clk 0:02:25.9]} 15... exd5 {[%clk 0:02:20.6]} 16. exd5+ {[%clk 0:02:01.8]}
16... Qe5 {[%clk 0:01:51.6]} 17. Qd2 {[%clk 0:00:34.9]} 17... Qf4 {[%clk
0:01:44.9]} 18. dxc6 {[%clk 0:00:32.8]} 18... Qxd2+ {[%clk 0:01:45.6]} 19. Kxd2
{[%clk 0:00:32.8]} 19... Bxc6 {[%clk 0:01:47]} 20. Rhe1+ {[%clk 0:00:32.9]}
20... Kf8 {[%clk 0:01:47.6]} 21. f3 {[%clk 0:00:32.4]} 21... Kg7 {[%clk
0:01:46.9]} 22. Kc3 {[%clk 0:00:33.1]} 22... Rhe8 {[%clk 0:01:46]} 23. Rh1
{[%clk 0:00:33.3]} 23... b5 {[%clk 0:01:41.8]} 24. Rh5 {[%clk 0:00:33]} 24... h6
{[%clk 0:01:38.3]} 25. Rdh1 {[%clk 0:00:32.8]} 25... Rh8 {[%clk 0:01:39.7]} 26.
R1h3 {[%clk 0:00:27.5]} 26... Rac8 {[%clk 0:01:39.5]} 27. Rc5 {[%clk 0:00:26.1]}
27... Bd7 {[%clk 0:01:39.7]} 28. Kb4 {[%clk 0:00:25.6]} 28... Rxc5 {[%clk
0:01:38.6]} 29. Kxc5 {[%clk 0:00:26]} 29... Bxh3 {[%clk 0:01:40.3]} 0-1

[Event "*** Titled Tuesday 3|2 Blitz"]
[Site "Chess.com"]
[Date "2016.01.05"]
[Round "3"]
[White "Dlugy"]
[Black "StellarChessPro"]
[Result "1/2-1/2"]
[WhiteElo "2560"]
[BlackElo "2230"]
[TimeControl "180+2"]
[EndTime "17:35:34 PST"]
[Termination "Game drawn by agreement"]

1. d4 {[%clk 0:03:01.9]} 1... d5 {[%clk 0:02:51.5]} 2. Bf4 {[%clk 0:03:03.3]}
2... c6 {[%clk 0:02:52.7]} 3. e3 {[%clk 0:03:04.8]} 3... Nf6 {[%clk 0:02:54.1]}
4. c4 {[%clk 0:03:06.3]} 4... Nbd7 {[%clk 0:02:55.2]} 5. Nc3 {[%clk 0:03:07.6]}
5... e6 {[%clk 0:02:56.7]} 6. Nf3 {[%clk 0:03:07.7]} 6... Be7 {[%clk 0:02:57.2]}
7. Bd3 {[%clk 0:03:04]} 7... O-O {[%clk 0:02:58.2]} 8. O-O {[%clk 0:03:04.6]}
8... h6 {[%clk 0:02:58.7]} 9. h3 {[%clk 0:03:05.5]} 9... dxc4 {[%clk 0:02:59.8]}
10. Bxc4 {[%clk 0:03:06.6]} 10... b5 {[%clk 0:03:01.7]} 11. Bd3 {[%clk
0:03:06.8]} 11... Bb7 {[%clk 0:03:03.1]} 12. a3 {[%clk 0:03:05.2]} 12... a6
{[%clk 0:03:03.8]} 13. b4 {[%clk 0:03:06.2]} 13... a5 {[%clk 0:03:04.3]} 14. Rb1
{[%clk 0:03:05]} 14... axb4 {[%clk 0:03:04.6]} 15. axb4 {[%clk 0:03:06.9]} 15...
Nd5 {[%clk 0:03:05.3]} 16. Nxd5 {[%clk 0:03:07.2]} 16... exd5 {[%clk 0:03:07.2]}
17. Bc2 {[%clk 0:03:00]} 17... Ra3 {[%clk 0:03:00.7]} 18. Ne1 {[%clk 0:02:48.1]}
18... Bc8 {[%clk 0:02:57]} 19. Nd3 {[%clk 0:02:47.3]} 19... Re8 {[%clk
0:02:48.9]} 20. Ra1 {[%clk 0:02:48.2]} 20... Rxa1 {[%clk 0:02:47.3]} 21. Qxa1
{[%clk 0:02:49.8]} 21... Nb6 {[%clk 0:02:46.6]} 22. Ne5 {[%clk 0:02:48.7]} 22...
Bd7 {[%clk 0:02:40.2]} 23. Rb1 {[%clk 0:02:37.9]} 23... Nc4 {[%clk 0:02:39.8]}
24. Nd3 {[%clk 0:02:34.2]} 24... Bf5 {[%clk 0:02:35.8]} 25. Ne1 {[%clk
0:02:21.2]} 25... Bxc2 {[%clk 0:02:35.1]} 26. Nxc2 {[%clk 0:02:22.4]} 26... Qa8
{[%clk 0:02:37]} 27. g4 {[%clk 0:01:55.6]} 27... Qb7 {[%clk 0:02:35.5]} 28. Qc3
{[%clk 0:01:55.7]} 28... Ra8 {[%clk 0:02:35.2]} 29. Ra1 {[%clk 0:01:57.2]} 29...
Rxa1+ {[%clk 0:02:33.8]} 30. Qxa1 {[%clk 0:01:57.8]} 30... Bd6 {[%clk 0:02:35]}
31. Bxd6 {[%clk 0:01:58.5]} 31... Nxd6 {[%clk 0:02:35]} 32. Ne1 {[%clk
0:01:59.7]} 32... Nc8 {[%clk 0:02:24.6]} 33. Nd3 {[%clk 0:02:00.1]} 33... Qa7
{[%clk 0:02:06]} 34. Qa5 {[%clk 0:02:00.2]} 34... Qb6 {[%clk 0:01:49.6]} 35. Qa8
{[%clk 0:01:58.6]} 35... Qc7 {[%clk 0:01:45.7]} 36. Ne5 {[%clk 0:01:59.6]} 36...
f6 {[%clk 0:01:39.1]} 37. Nxc6 {[%clk 0:01:54.8]} 37... Kh7 {[%clk 0:01:36.8]}
38. Na5 {[%clk 0:01:54.4]} 38... Ne7 {[%clk 0:01:28.3]} 39. Qe8 {[%clk
0:01:52.2]} 39... Qc1+ {[%clk 0:01:14.8]} 40. Kg2 {[%clk 0:01:52.2]} 40... Ng6
{[%clk 0:01:16.3]} 41. Qxb5 {[%clk 0:01:45.9]} 41... Nh4+ {[%clk 0:01:15.6]} 42.
Kh2 {[%clk 0:01:38.8]} 42... Qe1 {[%clk 0:01:09.4]} 43. Qxd5 {[%clk 0:01:33.9]}
43... Qxf2+ {[%clk 0:01:08.7]} 44. Kh1 {[%clk 0:01:35.4]} 44... Nf3 {[%clk
0:01:07.5]} 45. Qf5+ {[%clk 0:01:35.9]} 45... Kg8 {[%clk 0:01:05.5]} 46. Qc8+
{[%clk 0:01:35.5]} 46... Kh7 {[%clk 0:01:04.8]} 47. Qf5+ {[%clk 0:01:36.3]}
1/2-1/2

[Event "*** Titled Tuesday 3|2 Blitz"]
[Site "Chess.com"]
[Date "2016.01.05"]
[Round "3"]
[White "AdrianaNikolova"]
[Black "Assasin14"]
[Result "0-1"]
[WhiteElo "2154"]
[BlackElo "1972"]
[TimeControl "180+2"]
[EndTime "17:35:38 PST"]
[Termination "Assasin14 won by resignation"]

1. e4 {[%clk 0:03:01.9]} 1... c5 {[%clk 0:02:57.2]} 2. Nf3 {[%clk 0:03:02.3]}
2... d6 {[%clk 0:02:57.2]} 3. d4 {[%clk 0:03:03.2]} 3... cxd4 {[%clk 0:02:59.1]}
4. Nxd4 {[%clk 0:03:04.9]} 4... Nf6 {[%clk 0:03:00.3]} 5. Nc3 {[%clk 0:03:06.4]}
5... a6 {[%clk 0:03:01.4]} 6. Bg5 {[%clk 0:03:07.6]} 6... e6 {[%clk 0:03:01.8]}
7. f4 {[%clk 0:03:09]} 7... Be7 {[%clk 0:03:01.6]} 8. Qf3 {[%clk 0:03:10.4]}
8... Qc7 {[%clk 0:03:02.1]} 9. O-O-O {[%clk 0:03:11.6]} 9... Nbd7 {[%clk
0:03:02.9]} 10. g4 {[%clk 0:03:11.7]} 10... Rb8 {[%clk 0:03:01.6]} 11. Kb1
{[%clk 0:03:04.8]} 11... b5 {[%clk 0:03:02.2]} 12. Bxf6 {[%clk 0:03:05.9]} 12...
Bxf6 {[%clk 0:03:02.7]} 13. Bxb5 {[%clk 0:02:42.7]} 13... Bxd4 {[%clk
0:02:40.1]} 14. Bxd7+ {[%clk 0:02:41.5]} 14... Bxd7 {[%clk 0:02:41.6]} 15. Rxd4
{[%clk 0:02:42.8]} 15... Qb6 {[%clk 0:02:42.8]} 16. b3 {[%clk 0:01:59.8]} 16...
Qxd4 {[%clk 0:02:42.4]} 17. Rd1 {[%clk 0:02:01.3]} 17... Qc5 {[%clk 0:02:37.6]}
18. f5 {[%clk 0:02:02.4]} 18... O-O {[%clk 0:02:37.2]} 19. f6 {[%clk 0:02:01.8]}
19... Rfc8 {[%clk 0:02:13.1]} 20. Rd3 {[%clk 0:01:53.1]} 20... Bb5 {[%clk
0:02:11.4]} 21. Re3 {[%clk 0:01:54.3]} 21... d5 {[%clk 0:01:58.4]} 22. exd5
{[%clk 0:01:06.3]} 22... exd5 {[%clk 0:02:00.3]} 23. b4 {[%clk 0:00:41.5]} 23...
Qxb4+ {[%clk 0:01:59.7]} 24. Kc1 {[%clk 0:00:42.9]} 24... d4 {[%clk 0:01:57.2]}
25. Qf4 {[%clk 0:00:39.7]} 25... Qa3+ {[%clk 0:01:44.6]} 26. Kd1 {[%clk
0:00:40.8]} 26... dxc3 {[%clk 0:01:42.8]} 27. Qg5 {[%clk 0:00:38.1]} 27... Rd8+
{[%clk 0:01:29.8]} 28. Ke1 {[%clk 0:00:38.7]} 28... g6 {[%clk 0:01:28.9]} 29.
Qh6 {[%clk 0:00:34.4]} 29... Qf8 {[%clk 0:01:28.9]} 30. Qh4 {[%clk 0:00:34.8]}
30... Re8 {[%clk 0:01:28.2]} 31. Kf2 {[%clk 0:00:32.4]} 31... Rxe3 {[%clk
0:01:28.4]} 32. Kxe3 {[%clk 0:00:34.3]} 32... Re8+ {[%clk 0:01:29.6]} 33. Kf3
{[%clk 0:00:30.2]} 33... Bc6+ {[%clk 0:01:30.2]} 34. Kf2 {[%clk 0:00:26.2]}
34... Qc5+ {[%clk 0:01:30.8]} 35. Kf1 {[%clk 0:00:27.2]} 35... Qe3 {[%clk
0:01:29.9]} 0-1